Cogmind - Beta 10.2 @@@ ROGUE MODE // 2020.11.04 @ 22:05:02 Player: hunvagy2 Result: Destroyed by G-47 Trooper with Particle Gun Performance ------------- Evolutions (2) 1000 Regions Visited (5) 1000 Robots Destroyed (36) 180 Value Destroyed (887) 887 Prototype IDs (1) 20 Alien Tech Used (0) 0 Bonus (354) 354 TOTAL SCORE: 3441 Bonus ------- Follower Combat Kills 154 Entered Garrisons 200 Cogmind --------- Core Integrity 0/550 Matter 15/300 Energy 100/100 System Corruption 0% Temperature Cool (9) Movement Core (700) Ox13 Location -8/Garrison Parts ------- > --- POWER (1) -------- (None) > --- PROPULSION (4) --- (None) > --- UTILITY (3) ------ Medium Storage Unit Large Storage Unit Large Storage Unit > --- WEAPON (3) ------- (None) > --- INVENTORY (20) --- Light Nuclear Core Aluminum Leg EM Pulse Gun Heavy Laser Light EM Pulse Cannon Peak State ------------ > --- POWER ------------ Light Nuclear Core > --- PROPULSION ------- Aluminum Leg Aluminum Leg Carbon-fiber Leg Carbon-fiber Leg > --- UTILITY ---------- Medium Storage Unit Large Storage Unit Large Storage Unit > --- WEAPON ----------- Light Assault Rifle Enhanced Autogun Rocket Launcher > --- INVENTORY -------- Light Nuclear Core Aluminum Leg Aluminum Leg EM Pulse Gun Heavy Laser Light EM Pulse Cannon Improved Datajack [Rating: 22] Favorites ----------- Power Light Ion Engine Engine Light Ion Engine Power Core Light Nuclear Core Propulsion Aluminum Leg Leg Aluminum Leg Utility Large Storage Unit Device Heat Sink Storage Large Storage Unit Weapon Rocket Launcher Energy Gun EM Pulse Gun Ballistic Gun Enhanced Autogun Launcher Rocket Launcher Special Melee Weapon Improved Datajack Build | -11 -10 -9 -9 -8 -8 ------- Run | Scr Mat Mat Min Mat Gar Slots Evolved 4 | . . 2 . 2 . Power . | . . . . . . Propulsion 2 | . . 2 . . . Utility 1 | . . . . 1 . Weapon 1 | . . . . 1 . Parts Attached 32 | 6 1 12 1 6 6 Power 3 | 1 . 1 . . 1 Engine 2 | 1 . 1 . . . Core 1 | . . . . . 1 Reactor . | . . . . . . Propulsion 12 | 2 . 3 1 3 3 Treads . | . . . . . . Leg 12 | 2 . 3 1 3 3 Wheel . | . . . . . . Hover . | . . . . . . Flight . | . . . . . . Utility 7 | 1 1 4 . 1 . Device 3 | . 1 2 . . . Storage 4 | 1 . 2 . 1 . Processor . | . . . . . . Hackware . | . . . . . . Protection . | . . . . . . Artifact . | . . . . . . Weapon 10 | 2 . 4 . 2 2 Energy Gun 2 | 2 . . . . . Energy Cannon . | . . . . . . Ballistic Gun 4 | . . 2 . 1 1 Ballistic Cannon . | . . . . . . Launcher 3 | . . 2 . 1 . Special Weapon . | . . . . . . Impact Weapon . | . . . . . . Slashing Weapon . | . . . . . . Piercing Weapon . | . . . . . . Special Melee Weapon 1 | . . . . . 1 Unidentified Prototypes 1 | . . . . 1 . Parts Lost 18 | . . 2 1 4 11 Power 3 | . . 1 . 1 1 Propulsion 9 | . . 1 1 2 5 Utility . | . . . . . . Weapon 6 | . . . . 1 5 Highest Loss Streak 9 | . . 1 2 2 9 Average Slot Usage (%) 86 | . 96 94 88 77 72 Engine 7 | . 14 10 11 4 . Leg 33 | . 28 43 33 26 24 Device 3 | . 11 6 . . . Storage 18 | . 14 12 22 21 27 Energy Gun 8 | . 28 13 . . . Ballistic Gun 3 | . . 3 . 3 8 Launcher 10 | . . 5 22 22 7 Naked Turns . | . . . . . . Heaviest Build 53 | 11 12 43 43 51 53 Greatest Support 50 | 20 20 40 30 50 50 Greatest Overweight (x) 14 | 1 . 1 1 2 14 Average Overweight (x) . | . . . 1 1 1 Largest Inventory Capacity 20 | 6 6 16 16 20 20 Average Capacity 12 | 5 6 6 16 17 20 Most Carried 8 | 6 5 6 5 5 8 Average Carried 4 | 2 3 5 5 3 5 Final Capacity 20 | 6 6 16 16 20 20 Final Carried 6 | 2 5 6 5 4 5 Class Distribution -------------------- 67% | Mutant 12% | Hauler-Bomber 12% | Hauler-Mutant 5% | Gunner Dominant Class ---------------- Mutant | -10/Materials Mutant | -9/Materials Mutant | -9/Mines Hauler-Bomber | -8/Materials Hauler-Mutant | -8/Garrison Resources | -11 -10 -9 -9 -8 -8 ----------- Run | Scr Mat Mat Min Mat Gar Matter Collected 738 | 227 43 177 59 50 182 Remotely . | . . . . . . Salvage Created 882 | . 117 453 14 183 115 Parts 64 | . 5 39 1 14 5 Haulers Intercepted 1 | . . 1 . . . Recyclers Shooed 2 | . . 2 . . . Parts Field Recycled . | . . . . . . Retrieved Matter . | . . . . . . Parts Self-Destructed . | . . . . . . Prevented . | . . . . . . Kills | -11 -10 -9 -9 -8 -8 ------- Run | Scr Mat Mat Min Mat Gar Combat Hostiles Destroyed 30 | . 2 16 4 5 3 Guns 8 | . 2 5 . . 1 AOE 21 | . . 10 4 5 2 Classes Destroyed 10 | . 1 6 . 3 . Worker 1 | . . 1 . . . Builder 2 | . . 2 . . . Hauler 1 | . . 1 . . . Recycler 1 | . . . . 1 . Watcher 1 | . . . . 1 . Swarmer 13 | . . 7 4 2 . Grunt 12 | . 2 6 . 2 2 Brawler 2 | . . 1 . . 1 Sentry 2 | . . 2 . . . Hunter 1 | . . . . 1 . Best Kill Streak 11 | . 2 7 11 4 2 Combat Bots Only 10 | . 2 6 10 2 2 Max Kills in Single Turn 6 | . 1 6 3 2 1 Gunslinging . | . . . . . . Exploded 5 | . . 5 3 2 1 Melee . | . . . . . . Uniques/NPCs Destroyed . | . . . . . . Combat | -11 -10 -9 -9 -8 -8 -------- Run | Scr Mat Mat Min Mat Gar Damage Taken 2498 | . 97 469 150 163 1619 Core 635 | . 10 46 25 20 534 Absorbed by Shields 75 | . . . . . 75 Core Remaining (%) 92 | 100 96 . 82 . . Volleys Fired 52 | . 3 23 2 7 17 Largest 3 | . 2 2 2 3 3 Hottest 99 | . 80 80 66 99 78 Shots Fired 107 | . 6 45 4 21 31 Gun 61 | . 6 34 . 1 20 Cannon . | . . . . . . Launcher 46 | . . 11 4 20 11 Special . | . . . . . . Kinetic 29 | . . 8 . 1 20 Thermal . | . . . . . . Explosive 46 | . . 11 4 20 11 Electromagnetic 32 | . 6 26 . . . Robot Hit Streak 11 | . 5 11 . 2 2 Robot Miss Streak 7 | . 1 3 . 4 7 Penetration Max . | . . . . . . Secondary Targets 2 | . . 2 . . . Max Gunslinging Chain 1 | . . 1 . . . Shots Hit Robots 44 | . 5 28 . 4 7 Core Hits 71 | . 4 29 5 19 14 Critical Hits . | . . . . . . Critical Kills . | . . . . . . Critical Parts Destroyed . | . . . . . . Melee Attacks 4 | . . . . . 4 Impact . | . . . . . . Slashing . | . . . . . . Piercing . | . . . . . . Sneak Attacks . | . . . . . . Combat Hostiles . | . . . . . . Follow-up Attacks . | . . . . . . Damage Inflicted 3277 | . 84 1317 362 823 691 Guns 474 | . 55 304 . . 115 Cannons . | . . . . . . Explosions 2791 | . 29 1001 362 823 576 Melee . | . . . . . . Ramming 12 | . . 12 . . . Kinetic 194 | . . 79 . . 115 Thermal 139 | . 29 110 . . . Explosive 2652 | . . 891 362 823 576 Electromagnetic 280 | . 55 225 . . . Impact . | . . . . . . Slashing . | . . . . . . Piercing . | . . . . . . Highest Corruption 3 | . . 3 3 . . Average Corruption 3 | . . 3 3 . . Corruption Purged . | . . . . . . Effects 7 | . . 3 4 . . Message Errors 3 | . . . 3 . . Matter Fused 1 | . . 1 . . . Heat Flow Errors 1 | . . . 1 . . Targeting Errors 1 | . . 1 . . . Weapon Failures 1 | . . 1 . . . Overload Shots . | . . . . . . Overflow Damage 98 | . . 4 35 2 57 Projectiles . | . . . . . . Explosions 98 | . . 4 35 2 57 Melee . | . . . . . . Knockbacks . | . . . . . . Impact . | . . . . . . Kinetic . | . . . . . . Secondary . | . . . . . . Self-Inflicted Damage 314 | . 23 54 116 . 121 Shots 10 | . 1 2 3 . 4 Rammed . | . . . . . . Targets Rammed 2 | . . 2 . . . Kicked 2 | . . 2 . . . Crushed . | . . . . . . Highest Temperature 131 | . 14 14 131 42 70 Average Temperature 23 | . 8 8 67 17 25 Received Heat Transfer 708 | . 18 99 . 36 555 Siege Activations . | . . . . . . Robots Corrupted 1 | . . 1 . . . Combat Hostiles 1 | . . 1 . . . Parts Fried 1 | . . 1 . . . Impact Corruptions . | . . . . . . Robots Melted . | . . . . . . Combat Hostiles . | . . . . . . Parts Melted . | . . . . . . Heat Transferred 250 | . 100 150 . . . Parts Sabotaged . | . . . . . . Parts Stolen . | . . . . . . Parts Stripped . | . . . . . . Power Chain Reactions 2 | . 1 1 . . . Missiles Intercepted . | . . . . . . Alert | -11 -10 -9 -9 -8 -8 ------- Run | Scr Mat Mat Min Mat Gar Peak Influence 403 | . 80 285 186 403 344 Initial 264 | . . 33 106 72 264 Average 163 | . 49 106 185 232 294 Maximum Alert Level 2 | . . 1 . 2 1 Low Security (%) 69 | 100 100 95 100 32 . Level 1 30 | . . 4 . 64 100 Level 2 . | . . . . 2 . Level 3 . | . . . . . . Level 4 . | . . . . . . Level 5 . | . . . . . . High Security . | . . . . . . Max Security . | . . . . . . Squads Dispatched 3 | . 1 1 . 1 . Investigation . | . . . . . . Extermination . | . . . . . . Reinforcement 3 | . 1 1 . 1 . Assault . | . . . . . . Garrison . | . . . . . . Intercept . | . . . . . . Construction Impeded . | . . . . . . Haulers Reinforced . | . . . . . . Stealth | -11 -10 -9 -9 -8 -8 --------- Run | Scr Mat Mat Min Mat Gar Distress Signals 8 | . 2 5 . 1 . Communications Jammed . | . . . . . . Distress Signals . | . . . . . . Times Spotted 54 | . 4 27 4 13 6 Peak Tracking Total 11 | . 3 11 4 5 4 Tactical Retreats 1 | . . . . . 1 Traps | -11 -10 -9 -9 -8 -8 ------- Run | Scr Mat Mat Min Mat Gar Traps Triggered 4 | . 1 . . . 3 Indirectly . | . . . . . . Trap Hack Attempts 3 | . . . . . 3 Triggered . | . . . . . . Disarmed . | . . . . . . Reprogrammed . | . . . . . . Reused . | . . . . . . Traps Extracted . | . . . . . . Installed . | . . . . . . Triggered . | . . . . . . Machines | -11 -10 -9 -9 -8 -8 ---------- Run | Scr Mat Mat Min Mat Gar Machines Disabled 2 | . 1 . . 1 . Max in Single Turn 1 | . 1 . . 1 . Machines Sabotaged . | . . . . . . Garrisons Compromised . | . . . . . . Overloaded Fab Kills . | . . . . . . Fab Network Shutdowns . | . . . . . . Hacking | -11 -10 -9 -9 -8 -8 --------- Run | Scr Mat Mat Min Mat Gar Machines Accessed 5 | . . 3 . 2 . Terminals 2 | . . 1 . 1 . Fabricators . | . . . . . . Repair Stations . | . . . . . . Recycling Units 2 | . . 2 . . . Scanalyzers . | . . . . . . Garrison Access 1 | . . . . 1 . Total Hacks 7 | . . 3 . 4 . Successful 4 | . . 3 . 1 . Failed 3 | . . . . 3 . Catastrophic . | . . . . . . Database Lockouts . | . . . . . . Manual . | . . . . . . Terminals 4 | . . 1 . 3 . Fabricators . | . . . . . . Repair Stations . | . . . . . . Recycling Units 2 | . . 2 . . . Scanalyzers . | . . . . . . Garrison Access 1 | . . . . 1 . Terminal Hacks 1 | . . 1 . . . Alert Level 1 | . . 1 . . . Fabricator Hacks . | . . . . . . Repair Station Hacks . | . . . . . . Recycling Unit Hacks 2 | . . 2 . . . Report Inventory 2 | . . 2 . . . Scanalyzer . | . . . . . . Garrison Access Hacks 1 | . . . . 1 . Unlock Access 1 | . . . . 1 . Unauthorized Hacks . | . . . . . . Terminals . | . . . . . . Fabricators . | . . . . . . Repair Stations . | . . . . . . Recycling Units . | . . . . . . Scanalyzers . | . . . . . . Garrison Access . | . . . . . . Data Cores Recovered . | . . . . . . Used . | . . . . . . Hacking Detections 3 | . . 2 . 1 . Full Trace Events 1 | . . . . 1 . Feedback Events . | . . . . . . Feedback Blocked . | . . . . . . Robot Schematics Acquired . | . . . . . . Robots Built . | . . . . . . Matter . | . . . . . . Time . | . . . . . . Total Robot Build Rating . | . . . . . . Part Schematics Acquired . | . . . . . . Parts Built . | . . . . . . Matter . | . . . . . . Time . | . . . . . . Total Part Build Rating . | . . . . . . Parts Repaired . | . . . . . . Time . | . . . . . . Parts Recycled . | . . . . . . Recycled Matter . | . . . . . . Retrieved Matter . | . . . . . . Retrieved Components . | . . . . . . Parts Scanalyzed . | . . . . . . Part Schematics Acquired . | . . . . . . Parts Damaged . | . . . . . . Bothacking | -11 -10 -9 -9 -8 -8 ------------ Run | Scr Mat Mat Min Mat Gar Used RIF Installer . | . . . . . . Robots Hacked 1 | . . . . . 1 Non-combat . | . . . . . . Combat 1 | . . . . . 1 Robot Hacks Applied 2 | . . . . . 2 parse_system 2 | . . . . . 2 Relay Couplers Released . | . . . . . . Robots Rewired . | . . . . . . Allies Hacked . | . . . . . . Hacks Repelled . | . . . . . . Allies | -11 -10 -9 -9 -8 -8 -------- Run | Scr Mat Mat Min Mat Gar Total Allies 3 | . . . 3 . . Largest Group 3 | . . . 3 3 2 Highest-Rated Group 40 | . . . 40 40 32 Highest-Rated Ally 16 | . . . 16 16 16 Total Orders 2 | . . . . . 2 ROAM 2 | . . . . . 2 Ally Attacks 26 | . . . . 15 11 Total Damage 299 | . . . . 169 130 Kills 6 | . . . . 5 1 Allies Corrupted . | . . . . . . Allies Melted . | . . . . . . Intel | -11 -10 -9 -9 -8 -8 ------- Run | Scr Mat Mat Min Mat Gar Robot Analysis Total . | . . . . . . Derelict Logs Recovered 1 | . . . 1 . . Drone Launches . | . . . . . . Drone Recoveries . | . . . . . . Exploration | -11 -10 -9 -9 -8 -8 ------------- Run | Scr Mat Mat Min Mat Gar Turns Passed 1446 | 58 131 540 225 221 271 Spaces Moved 774 | 40 97 297 146 120 74 Core 17 | 13 . . . . 4 Treads . | . . . . . . Legs 757 | 27 97 297 146 120 70 Wheels . | . . . . . . Hover . | . . . . . . Flight . | . . . . . . Fastest Speed 50 | 50 120 120 150 150 120 Average Speed 137 | 112 120 122 150 155 177 Slowest Speed 750 | 120 120 150 150 180 750 Overloaded Moves . | . . . . . . Propulsion Burnouts . | . . . . . . Robots Hopped . | . . . . . . Cave-ins Triggered . | . . . . . . Exploration Rate (%) 26 | 4 24 37 43 21 27 Regions Visited 5 Branch Regions 1 Pre-discovered Areas . | . . . . . . Known Exits Taken 1 | . . . . 1 . Unknown Exits Taken 4 | 1 1 1 1 . . Scrap Searched 1 | . . . 1 . . Spaces Dug 28 | . . 17 . . 11 Terrain Destroyed 304 | . 2 83 38 119 62 Melee . | . . . . . . Projectile . | . . . . . . AOE 304 | . 2 83 38 119 62 Terrain Rammed . | . . . . . . Walls Destroyed . | . . . . . . Machines Disabled . | . . . . . . Actions | -11 -10 -9 -9 -8 -8 --------- Run | Scr Mat Mat Min Mat Gar Total 1068 | 53 105 435 148 138 189 Wait 146 | . 1 76 . . 69 Move 770 | 39 96 296 145 120 74 Hop . | . . . . . . Pick Up 37 | 8 4 15 . 5 5 Fast Attach . | . . . . . . Attach 26 | 6 1 8 1 6 4 Detach . | . . . . . . Swap 6 | . . 4 . . 2 Drop 11 | . . 11 . . . Fire 52 | . 3 23 2 7 17 Melee 4 | . . . . . 4 Ram . | . . . . . . Kick 2 | . . 2 . . . Crush . | . . . . . . Escape Stasis 11 | . . . . . 11 Rewire . | . . . . . . Trap 3 | . . . . . 3 Miscellaneous . | . . . . . . Route ------- -11/Scrapyard -10/Materials -9/Materials -9/Mines -8/Materials (discovered 2 exits: Fac / Gar) -8/Garrison History --------- Turn | Location | Event 16 | -11/Scrapyard | Discovered new exit (range 14) 59 | -11/Scrapyard | Entered Materials 168 | -10/Materials | Discovered new exit (range 16) 190 | -10/Materials | Entered another Materials area 190 | -9/Materials | Evolved 2 slots: Propulsion x2 307 | -9/Materials | Build established: Mutant 697 | -9/Materials | Discovered new exit (range 16) 730 | -9/Materials | Entered Mines 757 | -9/Mines | Destroyed 10 combat bots 785 | -9/Mines | Assisted by bots powering up and referring to "LRC-V3" 938 | -9/Mines | Discovered new exit (range 12) 955 | -9/Mines | Entered Materials 955 | -8/Materials | Accompanied by 3 allies 955 | -8/Materials | Evolved 2 slots: Utility x1, Weapon x1 956 | -8/Materials | Identified exit to Factory 1176 | -8/Materials | Identified exit to Garrison 1176 | -8/Materials | Entered Garrison 1176 | -8/Garrison | Accompanied by 2 allies 1308 | -8/Garrison | Triggered checkpoint 1310 | -8/Garrison | Triggered checkpoint 1327 | -8/Garrison | Triggered checkpoint 1392 | -8/Garrison | Core integrity fell below 50% 1407 | -8/Garrison | Lost 9 parts (1p5n3w) 1424 | -8/Garrison | Core integrity fell below 20% 1447 | -8/Garrison | Destroyed by G-47 Trooper with Particle Gun Last Messages --------------- Aluminum Leg destroyed. Destroyed Imp. Aluminum Leg. Stasis field depleted. Aluminum Leg destroyed. Jacked L-31 Rogue... Right-click on available options for more info. Keyboard players can use Shift-a~z. >>parse_system Reading system data... Jacked L-31 Rogue... Command string: link?fov No effect. Jacked L-31 Rogue... Command string: disable_weapons >>parse_system Reading system data... Enh. Autogun destroyed. Attempting to reprogram Stasis Trap. The unstable cave ceiling collapses. Imp. Datajack destroyed. Map ----- +----------------------------------------------------+ | ?????????????????????????????????????????????????? | | ??????????????????????????????????????????? ?????? | | ??????????????????????????????######??""## ?????? | | ??????????????????????????????# ?? ?????? | | ?????????????????????????????? ? ??????? | | ?????????????????????????????? ?? ????? | | ?????????????????????????????? # #???? | | ????????????????????????????### # # #???? | | ????????????????????????????# "???? | | ????????????????????????????# "???? | | ????????????????????????????# ????? | | ????????????????????????????# ??????? | | ????????????????????????????### #??? #???? | | ????????????????????######### ## ###?? | | ????????????????????# | | ????????????????????# | | ????????????????????# ####### ##??? | | ????????????????????# #?????## # ## ##???? | | ????????????????????# #?????# # #????????? | | ???????????????????## #???##### ##?####????????? | | ???????????????????? #??? ??# ##?????????????? | | ????????????????????# #???? ?## #?????????????? | | ????????????#######?# #???? # #g #?????????????? | | ????????????# ## ###### ##????????????? | | ?????????????????# # ^ l% #????????????? | | ?????????????????# #[ @ g #????????????? | | ?????????????????# ##### #????????????? | | ?????????????????# ## ##?### #????????????? | | ?????????????????# # #????#######????????????? | | ?????????????????# #???????????????????????? | | ?????????????????###! ##???????????????????????? | | ???????????????????# ##????????????????????????? | | ???????????????????## #?????????????????????????? | | ????????????????????# #?????????????????????????? | | ????????????????????# !#?????????????????????????? | | ????????????????????#* #?????????????????????????? | | ???????????########## #?????????????????????????? | | ???????????# #?????????????????????????? | | ???????????# #?????????????????????????? | | ???????????# #########?????????????????????????? | | ???????????# #?????????????????????????????????? | | ???????????#####?????????????????????????????????? | | ?????????????????????????????????????????????????? | | ?????????????????????????????????????????????????? | | ?????????????????????????????????????????????????? | | ?????????????????????????????????????????????????? | | ?????????????????????????????????????????????????? | | ?????????????????????????????????????????????????? | | ?????????????????????????????????????????????????? | | ?????????????????????????????????????????????????? | +----------------------------------------------------+ Best States ------------- Heat Dissipation 50 Energy Generation 14 Energy Capacity 160 Matter Stores 300 Matter Capacity 300 Sight Range 16 Terrain Scan Density 10 Evasion (%) 40 Item Schematics ----------------- None Robot Schematics ------------------ None Fabricated ------------ Nothing Alien Tech Used ----------------- None Achievements -------------- Oops Quick And Dirty Remodeling Challenges ------------ None Game ------ Seed TiamatAntigravBoregun Manual? 0 Play Time 00:27:28 Cumulative 2.6 hours Start 2020.11.04 @ 21:36:53 End 2020.11.04 @ 22:05:02 Sessions 1 Manual Loads 0 Difficulty Rogue Special Mode None Game No. 8 Rogue 4 Adventurer 4 Explorer 0 Win Type - Total 0 Types 0/0/0/0/0/0/0/0/0 Lore% 1 Gallery% 5 Achievement% 7 Wizard Run 0 Options --------- ASCII 0 Keyboard 0 Movement Mouse Keybinds 0 Fullscreen 2 Font 18/CogWide Map View 76x50 Tactical HUD 0 Map Filters NONE Filters NONE Steam 1 RUN: 82bf74c2-4df6-4216-b85a-557b76878367